[Event "*** Titled Tuesday Blitz"]
[Site "Chess.com"]
[Date "2019.02.05"]
[Round "3"]
[White "Samuray111"]
[Black "dusanacns"]
[Result "1-0"]
[WhiteElo "2568"]
[BlackElo "2595"]
[TimeControl "180+2"]
[EndTime "13:40:01 PST"]
[Termination "Samuray111 won by resignation"]

1. Nf3 {[%clk 0:02:59.9]} 1... Nf6 {[%clk 0:03:00.8]} 2. b3 {[%clk 0:03:00.4]}
2... g6 {[%clk 0:03:02.4]} 3. Bb2 {[%clk 0:03:01]} 3... Bg7 {[%clk 0:03:04.3]}
4. g3 {[%clk 0:03:02.4]} 4... O-O {[%clk 0:03:05.8]} 5. Bg2 {[%clk 0:03:03.9]}
5... a5 {[%clk 0:03:04.6]} 6. a3 {[%clk 0:03:02.1]} 6... a4 {[%clk 0:03:04.8]}
7. b4 {[%clk 0:03:02.7]} 7... d6 {[%clk 0:03:06.4]} 8. d4 {[%clk 0:03:02.3]}
8... d5 {[%clk 0:03:04.6]} 9. Nbd2 {[%clk 0:03:02.3]} 9... Bf5 {[%clk
0:02:56.5]} 10. O-O {[%clk 0:03:01.5]} 10... Ne4 {[%clk 0:02:55.9]} 11. c4
{[%clk 0:03:02.1]} 11... c6 {[%clk 0:02:51.5]} 12. Rc1 {[%clk 0:03:01.8]} 12...
Nd7 {[%clk 0:02:49.3]} 13. Nh4 {[%clk 0:03:00.2]} 13... Nxd2 {[%clk 0:02:48.6]}
14. Qxd2 {[%clk 0:03:00.2]} 14... Be6 {[%clk 0:02:48.8]} 15. c5 {[%clk
0:02:57.1]} 15... Nf6 {[%clk 0:02:41.2]} 16. Qc2 {[%clk 0:02:53.3]} 16... Qd7
{[%clk 0:02:39.3]} 17. Rcd1 {[%clk 0:02:53.2]} 17... Bh3 {[%clk 0:02:33.2]} 18.
Rfe1 {[%clk 0:02:52.5]} 18... Bxg2 {[%clk 0:02:32.9]} 19. Nxg2 {[%clk
0:02:52.6]} 19... Ne4 {[%clk 0:02:28.5]} 20. f3 {[%clk 0:02:51.3]} 20... Ng5
{[%clk 0:02:29]} 21. Nf4 {[%clk 0:02:33.7]} 21... Rfe8 {[%clk 0:02:25.9]} 22.
Nd3 {[%clk 0:02:34.2]} 22... f6 {[%clk 0:02:25.9]} 23. Qd2 {[%clk 0:02:30.8]}
23... Rad8 {[%clk 0:01:43.7]} 24. Nf2 {[%clk 0:02:18]} 24... Nf7 {[%clk
0:01:40.3]} 25. Qc2 {[%clk 0:02:18]} 25... e5 {[%clk 0:01:38.4]} 26. dxe5 {[%clk
0:02:17.8]} 26... fxe5 {[%clk 0:01:37.1]} 27. Qxa4 {[%clk 0:02:18.7]} 27... Ng5
{[%clk 0:01:37.2]} 28. Qb3 {[%clk 0:02:15.9]} 28... Kh8 {[%clk 0:01:35.6]} 29.
a4 {[%clk 0:02:11]} 29... d4 {[%clk 0:01:35.4]} 30. Bc1 {[%clk 0:02:03.7]} 30...
Nh3+ {[%clk 0:01:30.1]} 31. Nxh3 {[%clk 0:01:56]} 31... Qxh3 {[%clk 0:01:32]}
32. e4 {[%clk 0:01:34]} 32... Rf8 {[%clk 0:01:21.3]} 33. Rf1 {[%clk 0:01:33.7]}
33... Rd7 {[%clk 0:01:20.6]} 34. b5 {[%clk 0:01:24.8]} 34... Rdf7 {[%clk
0:01:20.2]} 35. bxc6 {[%clk 0:01:19.7]} 35... bxc6 {[%clk 0:01:22]} 36. a5
{[%clk 0:01:20.1]} 36... Qc8 {[%clk 0:01:23.3]} 37. Bd2 {[%clk 0:01:16.1]} 37...
Rb7 {[%clk 0:01:24.4]} 38. Qa3 {[%clk 0:01:10.5]} 38... Rb5 {[%clk 0:01:21.1]}
39. a6 {[%clk 0:01:08.3]} 39... Rf7 {[%clk 0:01:21.4]} 40. Ra1 {[%clk
0:01:05.3]} 40... Ra7 {[%clk 0:01:21.2]} 41. Rfb1 {[%clk 0:00:52.1]} 41... Rxa6
{[%clk 0:00:58.8]} 42. Qxa6 {[%clk 0:00:51.1]} 42... Qxa6 {[%clk 0:00:57.7]} 43.
Rxa6 {[%clk 0:00:50.7]} 43... Rxb1+ {[%clk 0:00:58.3]} 44. Kf2 {[%clk
0:00:52.2]} 44... h5 {[%clk 0:00:38.6]} 45. Rxc6 {[%clk 0:00:38.3]} 45... Rb2
{[%clk 0:00:39.1]} 46. Ke1 {[%clk 0:00:37.4]} 46... h4 {[%clk 0:00:30.9]} 47.
Rxg6 {[%clk 0:00:34.8]} 47... h3 {[%clk 0:00:30.9]} 48. Rg4 {[%clk 0:00:36]}
48... Bf6 {[%clk 0:00:31.2]} 49. Rg6 {[%clk 0:00:33.9]} 49... Be7 {[%clk
0:00:24.2]} 50. c6 {[%clk 0:00:31.2]} 50... Bd8 {[%clk 0:00:20]} 51. Rh6+ {[%clk
0:00:25.1]} 51... Kg7 {[%clk 0:00:20.5]} 52. Rxh3 {[%clk 0:00:26.7]} 52... d3
{[%clk 0:00:18.3]} 53. Bc3 {[%clk 0:00:21.6]} 53... Rc2 {[%clk 0:00:10.8]} 54.
Bxe5+ {[%clk 0:00:22.3]} 54... Kg6 {[%clk 0:00:12.4]} 55. c7 {[%clk 0:00:23.7]}
55... Be7 {[%clk 0:00:07.5]} 56. c8=Q {[%clk 0:00:17.7]} 56... Rxc8 {[%clk
0:00:07.6]} 57. Kd2 {[%clk 0:00:19.2]} 57... Rd8 {[%clk 0:00:08.6]} 58. Rh8
{[%clk 0:00:18.4]} 58... Bb4+ {[%clk 0:00:09]} 59. Kd1 {[%clk 0:00:12.8]} 59...
Rd7 {[%clk 0:00:09.8]} 60. Rb8 {[%clk 0:00:13.5]} 60... Ba5 {[%clk 0:00:10.4]}
61. Rb5 {[%clk 0:00:14.5]} 61... Ra7 {[%clk 0:00:09.1]} 62. Bd4 {[%clk
0:00:11.7]} 62... Ra6 {[%clk 0:00:08.3]} 63. h4 {[%clk 0:00:12.2]} 63... Ra8
{[%clk 0:00:08.5]} 64. h5+ {[%clk 0:00:13.3]} 64... Kf7 {[%clk 0:00:10.1]} 65.
g4 {[%clk 0:00:14.1]} 65... Bc7 {[%clk 0:00:10.9]} 66. Kd2 {[%clk 0:00:15]}
66... Ra3 {[%clk 0:00:10.8]} 67. Rc5 {[%clk 0:00:14]} 67... Bd6 {[%clk
0:00:07.6]} 68. Rc3 {[%clk 0:00:09.6]} 68... Bb4 {[%clk 0:00:08.1]} 69. Kxd3
{[%clk 0:00:11.1]} 69... Bxc3 {[%clk 0:00:09.8]} 70. Bxc3 {[%clk 0:00:12.6]}
70... Ke7 {[%clk 0:00:10.9]} 71. g5 {[%clk 0:00:13.4]} 71... Kf7 {[%clk
0:00:12]} 72. g6+ {[%clk 0:00:14.1]} 72... Kg8 {[%clk 0:00:13.3]} 73. h6 {[%clk
0:00:15.2]} 1-0

[Event "*** Titled Tuesday Blitz"]
[Site "Chess.com"]
[Date "2019.02.05"]
[Round "3"]
[White "Saitama_Hero"]
[Black "MikeSailer"]
[Result "1-0"]
[WhiteElo "2222"]
[BlackElo "2114"]
[TimeControl "180+2"]
[EndTime "13:41:17 PST"]
[Termination "Saitama_Hero won on time"]

1. b3 {[%clk 0:03:01.9]} 1... d5 {[%clk 0:02:59]} 2. Bb2 {[%clk 0:03:01.2]} 2...
Nf6 {[%clk 0:03:00.5]} 3. Nf3 {[%clk 0:03:02.7]} 3... g6 {[%clk 0:03:01.8]} 4.
e3 {[%clk 0:03:04.6]} 4... Bg7 {[%clk 0:03:03.4]} 5. c4 {[%clk 0:03:05.3]} 5...
c6 {[%clk 0:03:03.8]} 6. Nc3 {[%clk 0:03:02.4]} 6... O-O {[%clk 0:03:04.8]} 7.
Be2 {[%clk 0:03:03.4]} 7... Re8 {[%clk 0:03:03.7]} 8. O-O {[%clk 0:03:03.7]}
8... e5 {[%clk 0:03:05]} 9. cxd5 {[%clk 0:03:03.4]} 9... cxd5 {[%clk 0:03:05.9]}
10. d4 {[%clk 0:03:04.1]} 10... e4 {[%clk 0:03:06.2]} 11. Ne5 {[%clk 0:03:05.6]}
11... Nbd7 {[%clk 0:03:03.7]} 12. Nb5 {[%clk 0:03:02.2]} 12... Qb6 {[%clk
0:02:58.3]} 13. a4 {[%clk 0:02:28.5]} 13... a6 {[%clk 0:02:44.2]} 14. a5 {[%clk
0:02:28.1]} 14... Qd8 {[%clk 0:02:45.2]} 15. Nd6 {[%clk 0:02:23]} 15... Re7
{[%clk 0:02:04.8]} 16. Rc1 {[%clk 0:02:20.8]} 16... Nxe5 {[%clk 0:02:00.4]} 17.
dxe5 {[%clk 0:02:20.8]} 17... Ne8 {[%clk 0:02:00.4]} 18. Qxd5 {[%clk 0:02:19.3]}
18... Be6 {[%clk 0:02:01]} 19. Qxe4 {[%clk 0:02:04.3]} 19... Nxd6 {[%clk
0:01:58.6]} 20. exd6 {[%clk 0:02:05.6]} 20... Qxd6 {[%clk 0:01:45.4]} 21. Bxg7
{[%clk 0:02:04.1]} 21... Kxg7 {[%clk 0:01:33]} 22. Rfd1 {[%clk 0:01:58.2]} 22...
Bxb3 {[%clk 0:01:21.4]} 23. Rxd6 {[%clk 0:01:21.4]} 23... Rxe4 {[%clk
0:01:22.3]} 24. Rb6 {[%clk 0:00:53.1]} 24... Bd5 {[%clk 0:00:29.4]} 25. Bf3
{[%clk 0:00:51.3]} 25... Rc4 {[%clk 0:00:30.5]} 26. Rxc4 {[%clk 0:00:49.4]}
26... Bxc4 {[%clk 0:00:32]} 27. Bxb7 {[%clk 0:00:49.7]} 27... Rd8 {[%clk
0:00:21.3]} 28. h3 {[%clk 0:00:51]} 28... Rd1+ {[%clk 0:00:20.3]} 29. Kh2 {[%clk
0:00:52.5]} 29... Ra1 {[%clk 0:00:21.3]} 30. Bxa6 {[%clk 0:00:50.6]} 30... Be6
{[%clk 0:00:18.9]} 31. Bd3 {[%clk 0:00:21.2]} 31... Rxa5 {[%clk 0:00:19.3]} 32.
Kg3 {[%clk 0:00:19.7]} 32... Rg5+ {[%clk 0:00:17.8]} 33. Kf3 {[%clk 0:00:17.9]}
33... h5 {[%clk 0:00:13.7]} 34. e4 {[%clk 0:00:18.4]} 34... Ra5 {[%clk
0:00:13.7]} 35. Ke3 {[%clk 0:00:18.4]} 35... Ra3 {[%clk 0:00:14.4]} 36. Rd6
{[%clk 0:00:17.8]} 36... Ra2 {[%clk 0:00:11.6]} 37. h4 {[%clk 0:00:17.1]} 37...
Rb2 {[%clk 0:00:12.3]} 38. Rd4 {[%clk 0:00:15.6]} 38... Ra2 {[%clk 0:00:13.4]}
39. Rd6 {[%clk 0:00:15.6]} 39... Ra3 {[%clk 0:00:14.7]} 40. e5 {[%clk
0:00:15.4]} 40... Ra4 {[%clk 0:00:14.1]} 41. g3 {[%clk 0:00:15.5]} 41... Ra3
{[%clk 0:00:15.6]} 42. Rd4 {[%clk 0:00:14.9]} 42... Rb3 {[%clk 0:00:16.7]} 43.
Rf4 {[%clk 0:00:14.7]} 43... Bf5 {[%clk 0:00:17.1]} 44. Rd4 {[%clk 0:00:15.2]}
44... Ra3 {[%clk 0:00:18.5]} 45. Ke2 {[%clk 0:00:15]} 45... Ra2+ {[%clk
0:00:18.6]} 46. Ke3 {[%clk 0:00:15.3]} 46... Ra3 {[%clk 0:00:20]} 47. f3 {[%clk
0:00:14.2]} 47... Rb3 {[%clk 0:00:20.6]} 48. Kd2 {[%clk 0:00:12.7]} 48... Bxd3
{[%clk 0:00:11.9]} 49. Rxd3 {[%clk 0:00:14.6]} 49... Rb2+ {[%clk 0:00:13.4]} 50.
Ke3 {[%clk 0:00:15.5]} 50... Rg2 {[%clk 0:00:13.9]} 51. Kf4 {[%clk 0:00:16.8]}
51... Rg1 {[%clk 0:00:15.2]} 52. Rd7 {[%clk 0:00:17.8]} 52... Re1 {[%clk
0:00:14.6]} 53. Rb7 {[%clk 0:00:14]} 53... Re2 {[%clk 0:00:15.8]} 54. Rb4 {[%clk
0:00:10.6]} 54... Re1 {[%clk 0:00:16.4]} 55. Re4 {[%clk 0:00:11.7]} 55... Rf1
{[%clk 0:00:15.5]} 56. e6 {[%clk 0:00:09]} 56... fxe6 {[%clk 0:00:16.7]} 57.
Rxe6 {[%clk 0:00:10.9]} 57... Ra1 {[%clk 0:00:16.2]} 58. Kg5 {[%clk 0:00:06.8]}
58... Ra5+ {[%clk 0:00:16.6]} 59. Kf4 {[%clk 0:00:08.2]} 59... Ra4+ {[%clk
0:00:17.7]} 60. Re4 {[%clk 0:00:09.3]} 60... Ra3 {[%clk 0:00:18.5]} 61. g4
{[%clk 0:00:09.4]} 61... hxg4 {[%clk 0:00:19.5]} 62. fxg4 {[%clk 0:00:11.3]}
62... Ra1 {[%clk 0:00:20.3]} 63. Rb4 {[%clk 0:00:09.7]} 63... Rf1+ {[%clk
0:00:20.1]} 64. Kg5 {[%clk 0:00:10.1]} 64... Rf7 {[%clk 0:00:21.3]} 65. Rb6
{[%clk 0:00:11.2]} 65... Ra7 {[%clk 0:00:11.7]} 66. Rxg6+ {[%clk 0:00:12.4]}
66... Kh7 {[%clk 0:00:12.9]} 67. h5 {[%clk 0:00:14.3]} 67... Ra5+ {[%clk
0:00:12.9]} 68. Kh4 {[%clk 0:00:12.4]} 68... Ra4 {[%clk 0:00:13.1]} 69. Rc6
{[%clk 0:00:12.8]} 69... Rb4 {[%clk 0:00:13.1]} 70. Rf6 {[%clk 0:00:13.5]} 70...
Ra4 {[%clk 0:00:14.6]} 71. Kg5 {[%clk 0:00:14.7]} 71... Ra5+ {[%clk 0:00:15.7]}
72. Rf5 {[%clk 0:00:16.2]} 72... Ra4 {[%clk 0:00:16]} 73. Rc5 {[%clk 0:00:14.4]}
73... Ra7 {[%clk 0:00:16]} 74. Kf5 {[%clk 0:00:13.9]} 74... Rf7+ {[%clk
0:00:16.1]} 75. Kg5 {[%clk 0:00:15.3]} 75... Rg7+ {[%clk 0:00:17.5]} 76. Kh4
{[%clk 0:00:15.8]} 76... Ra7 {[%clk 0:00:19.1]} 77. Rc6 {[%clk 0:00:11.6]} 77...
Ra4 {[%clk 0:00:18.2]} 78. h6 {[%clk 0:00:12.4]} 78... Rb4 {[%clk 0:00:16.8]}
79. Kh5 {[%clk 0:00:12.4]} 79... Rb1 {[%clk 0:00:16.9]} 80. g5 {[%clk
0:00:13.4]} 80... Rh1+ {[%clk 0:00:17.5]} 81. Kg4 {[%clk 0:00:14.5]} 81... Rg1+
{[%clk 0:00:19.1]} 82. Kf4 {[%clk 0:00:15.4]} 82... Rf1+ {[%clk 0:00:20.7]} 83.
Ke5 {[%clk 0:00:15.1]} 83... Re1+ {[%clk 0:00:20.9]} 84. Kf6 {[%clk 0:00:16.1]}
84... Rf1+ {[%clk 0:00:22.3]} 85. Ke7 {[%clk 0:00:16.8]} 85... Rg1 {[%clk
0:00:22.7]} 86. Rc5 {[%clk 0:00:08.5]} 86... Kg6 {[%clk 0:00:20.1]} 87. Kf8
{[%clk 0:00:09.4]} 87... Kh7 {[%clk 0:00:07.5]} 88. Rc7+ {[%clk 0:00:07.8]}
88... Kh8 {[%clk 0:00:07.9]} 89. Rg7 {[%clk 0:00:04]} 89... Rf1+ {[%clk
0:00:09]} 90. Rf7 {[%clk 0:00:04.7]} 90... Rg1 {[%clk 0:00:07.4]} 91. Rf5 {[%clk
0:00:05.1]} 91... Kh7 {[%clk 0:00:07.3]} 92. Kf7 {[%clk 0:00:06.3]} 92... Rg2
{[%clk 0:00:07.9]} 93. Kf6 {[%clk 0:00:04.3]} 93... Rg1 {[%clk 0:00:06.5]} 94.
Re5 {[%clk 0:00:05]} 94... Rf1+ {[%clk 0:00:07.3]} 95. Ke6 {[%clk 0:00:06.3]}
95... Kg6 {[%clk 0:00:06.3]} 96. Ke7 {[%clk 0:00:05.1]} 1-0

[Event "*** Titled Tuesday Blitz"]
[Site "Chess.com"]
[Date "2019.02.05"]
[Round "4"]
[White "TheBigBadChessDad"]
[Black "Veiso"]
[Result "0-1"]
[WhiteElo "2264"]
[BlackElo "2380"]
[TimeControl "180+2"]
[EndTime "13:44:30 PST"]
[Termination "Veiso won by resignation"]

1. d4 {[%clk 0:03:01.9]} 1... c5 {[%clk 0:02:57.9]} 2. c3 {[%clk 0:03:02.4]}
2... Nf6 {[%clk 0:02:57.9]} 3. Nf3 {[%clk 0:03:02.7]} 3... g6 {[%clk 0:02:59.4]}
4. Bf4 {[%clk 0:03:02.1]} 4... Bg7 {[%clk 0:03:00.8]} 5. e3 {[%clk 0:03:03.4]}
5... O-O {[%clk 0:03:02.3]} 6. Nbd2 {[%clk 0:03:03.5]} 6... b6 {[%clk
0:03:03.7]} 7. h3 {[%clk 0:03:04.5]} 7... Bb7 {[%clk 0:03:05]} 8. Bd3 {[%clk
0:03:02.7]} 8... d6 {[%clk 0:03:06]} 9. Qe2 {[%clk 0:03:03.9]} 9... Nbd7 {[%clk
0:03:07.1]} 10. O-O {[%clk 0:03:03.2]} 10... Re8 {[%clk 0:03:06.4]} 11. e4
{[%clk 0:03:01.3]} 11... e5 {[%clk 0:03:05.2]} 12. dxe5 {[%clk 0:03:02.5]} 12...
dxe5 {[%clk 0:03:05.8]} 13. Bg5 {[%clk 0:03:03.2]} 13... h6 {[%clk 0:03:06.1]}
14. Bxf6 {[%clk 0:03:03.9]} 14... Nxf6 {[%clk 0:03:04.4]} 15. Ba6 {[%clk
0:02:58.8]} 15... Bc6 {[%clk 0:03:01.8]} 16. Bb5 {[%clk 0:02:58.1]} 16... Bxb5
{[%clk 0:02:50.9]} 17. Qxb5 {[%clk 0:02:58.5]} 17... Nh5 {[%clk 0:02:52.8]} 18.
g3 {[%clk 0:02:58.2]} 18... Qc8 {[%clk 0:02:52]} 19. Kg2 {[%clk 0:02:56.7]}
19... Qe6 {[%clk 0:02:49.6]} 20. a4 {[%clk 0:02:46.8]} 20... g5 {[%clk
0:02:48.6]} 21. Qc4 {[%clk 0:02:45.9]} 21... g4 {[%clk 0:02:42.7]} 22. Ng1
{[%clk 0:02:38.7]} 22... gxh3+ {[%clk 0:02:43.5]} 23. Nxh3 {[%clk 0:02:39.9]}
23... Qg4 {[%clk 0:02:44.4]} 24. f3 {[%clk 0:02:36.8]} 24... Qxg3+ {[%clk
0:02:43.9]} 25. Kh1 {[%clk 0:02:37.3]} 25... Qxh3+ {[%clk 0:02:45.1]} 26. Kg1
{[%clk 0:02:32.2]} 26... Qg3+ {[%clk 0:02:39.7]} 27. Kh1 {[%clk 0:02:32]} 27...
Nf4 {[%clk 0:02:41.3]} 0-1

[Event "*** Titled Tuesday Blitz"]
[Site "Chess.com"]
[Date "2019.02.05"]
[Round "4"]
[White "Perecke"]
[Black "Fenil1995"]
[Result "0-1"]
[WhiteElo "2048"]
[BlackElo "2207"]
[TimeControl "180+2"]
[EndTime "13:45:18 PST"]
[Termination "Fenil1995 won by resignation"]

1. e4 {[%clk 0:03:01.9]} 1... c5 {[%clk 0:03:00.5]} 2. Nf3 {[%clk 0:02:56.1]}
2... e6 {[%clk 0:03:01.3]} 3. c4 {[%clk 0:02:54.2]} 3... Nc6 {[%clk 0:03:02.1]}
4. Nc3 {[%clk 0:02:37.3]} 4... Nf6 {[%clk 0:02:57.6]} 5. Be2 {[%clk 0:02:34.9]}
5... Qc7 {[%clk 0:02:51]} 6. O-O {[%clk 0:02:32.2]} 6... a6 {[%clk 0:02:51.7]}
7. d4 {[%clk 0:02:32.1]} 7... cxd4 {[%clk 0:02:51.1]} 8. Nxd4 {[%clk 0:02:34]}
8... Bd6 {[%clk 0:02:51.5]} 9. h3 {[%clk 0:02:31.6]} 9... O-O {[%clk 0:02:50.3]}
10. Kh1 {[%clk 0:02:22.2]} 10... Nxd4 {[%clk 0:02:45.7]} 11. Qxd4 {[%clk
0:02:22.6]} 11... Bc5 {[%clk 0:02:47.6]} 12. Qd3 {[%clk 0:02:20.2]} 12... d6
{[%clk 0:02:49]} 13. f4 {[%clk 0:02:19.8]} 13... Rb8 {[%clk 0:02:46.2]} 14. g4
{[%clk 0:02:19.2]} 14... b5 {[%clk 0:02:40.8]} 15. cxb5 {[%clk 0:02:18.6]} 15...
axb5 {[%clk 0:02:42.7]} 16. Nxb5 {[%clk 0:02:14.5]} 16... Qc6 {[%clk 0:02:35.3]}
17. Nc3 {[%clk 0:02:14]} 17... Bb4 {[%clk 0:02:30.6]} 18. Bf3 {[%clk 0:02:13.4]}
18... Ba6 {[%clk 0:02:31.1]} 19. Qd1 {[%clk 0:01:48.7]} 19... Bxf1 {[%clk
0:02:29.4]} 20. Qxf1 {[%clk 0:01:50.6]} 20... Bxc3 {[%clk 0:02:28.8]} 21. e5
{[%clk 0:01:45.6]} 21... Nd5 {[%clk 0:02:24.3]} 0-1

[Event "*** Titled Tuesday Blitz"]
[Site "Chess.com"]
[Date "2019.02.05"]
[Round "4"]
[White "Zq1"]
[Black "DenisQ"]
[Result "1/2-1/2"]
[WhiteElo "2523"]
[BlackElo "2666"]
[TimeControl "180+2"]
[EndTime "13:45:45 PST"]
[Termination "Game drawn by agreement"]

1. d4 {[%clk 0:02:57.2]} 1... d5 {[%clk 0:03:00.6]} 2. c4 {[%clk 0:02:58]} 2...
c6 {[%clk 0:03:00.9]} 3. cxd5 {[%clk 0:02:57.2]} 3... cxd5 {[%clk 0:03:01.4]} 4.
Bg5 {[%clk 0:02:58.2]} 4... Nc6 {[%clk 0:03:01.5]} 5. Nc3 {[%clk 0:02:57.3]}
5... h6 {[%clk 0:03:01.8]} 6. Bh4 {[%clk 0:02:57.6]} 6... Nf6 {[%clk 0:02:45.7]}
7. Bxf6 {[%clk 0:02:50.1]} 7... gxf6 {[%clk 0:02:47.6]} 8. e3 {[%clk 0:02:49.1]}
8... e6 {[%clk 0:02:41.2]} 9. g3 {[%clk 0:02:47.5]} 9... Bd7 {[%clk 0:02:41.5]}
10. Bg2 {[%clk 0:02:48.3]} 10... Rc8 {[%clk 0:02:40.6]} 11. Nf3 {[%clk
0:02:48.9]} 11... Na5 {[%clk 0:02:40.7]} 12. O-O {[%clk 0:02:49]} 12... Qb6
{[%clk 0:02:39.3]} 13. Rb1 {[%clk 0:02:47.1]} 13... Bb4 {[%clk 0:02:32.8]} 14.
Qe2 {[%clk 0:02:46.8]} 14... Qa6 {[%clk 0:02:17.8]} 15. Qxa6 {[%clk 0:02:32.4]}
15... bxa6 {[%clk 0:02:19.7]} 16. Rfc1 {[%clk 0:02:26.3]} 16... Ke7 {[%clk
0:02:16.6]} 17. Bf1 {[%clk 0:02:23.3]} 17... Nc4 {[%clk 0:02:15.9]} 18. Bxc4
{[%clk 0:02:16.3]} 18... Rxc4 {[%clk 0:02:15.8]} 19. Nd2 {[%clk 0:02:17.3]}
19... Rc6 {[%clk 0:02:13.5]} 20. a3 {[%clk 0:02:16.8]} 20... Bxc3 {[%clk
0:01:54.3]} 21. Rxc3 {[%clk 0:02:16.2]} 21... Rxc3 {[%clk 0:01:53.9]} 22. bxc3
{[%clk 0:02:17.2]} 22... Rc8 {[%clk 0:01:53.2]} 23. Rc1 {[%clk 0:02:15.8]} 23...
Rb8 {[%clk 0:01:45.8]} 24. Rb1 {[%clk 0:02:16.2]} 24... Rc8 {[%clk 0:01:46.9]}
25. Rc1 {[%clk 0:02:11.9]} 25... Rb8 {[%clk 0:01:47.9]} 26. Rb1 {[%clk
0:02:08.4]} 1/2-1/2

[Event "*** Titled Tuesday Blitz"]
[Site "Chess.com"]
[Date "2019.02.05"]
[Round "4"]
[White "Nathan_Filgueiras"]
[Black "Bauxi435"]
[Result "1-0"]
[WhiteElo "2267"]
[BlackElo "2434"]
[TimeControl "180+2"]
[EndTime "13:45:51 PST"]
[Termination "Nathan_Filgueiras won by resignation"]

1. e4 {[%clk 0:03:01.9]} 1... c5 {[%clk 0:03:00.6]} 2. Nf3 {[%clk 0:03:03.1]}
2... e6 {[%clk 0:03:01]} 3. d4 {[%clk 0:03:04.2]} 3... cxd4 {[%clk 0:03:02.9]}
4. Nxd4 {[%clk 0:03:05.3]} 4... Nf6 {[%clk 0:03:04.5]} 5. Nc3 {[%clk 0:03:05.4]}
5... Nc6 {[%clk 0:03:05.4]} 6. Be3 {[%clk 0:03:02]} 6... Bb4 {[%clk 0:03:04.4]}
7. Nxc6 {[%clk 0:02:58.2]} 7... bxc6 {[%clk 0:02:59]} 8. e5 {[%clk 0:02:35.3]}
8... Nd5 {[%clk 0:02:40.1]} 9. Bd2 {[%clk 0:02:31.5]} 9... Nxc3 {[%clk
0:02:40.5]} 10. bxc3 {[%clk 0:02:29.3]} 10... Be7 {[%clk 0:02:40.5]} 11. Qg4
{[%clk 0:02:26.4]} 11... g6 {[%clk 0:02:31.1]} 12. Bd3 {[%clk 0:02:27.4]} 12...
O-O {[%clk 0:02:23.4]} 13. h4 {[%clk 0:02:25.9]} 13... Qa5 {[%clk 0:02:13.6]}
14. Qg3 {[%clk 0:02:08]} 14... Kh8 {[%clk 0:01:55.4]} 15. h5 {[%clk 0:02:03.3]}
15... g5 {[%clk 0:01:56.8]} 16. O-O {[%clk 0:01:41.4]} 16... Rg8 {[%clk
0:01:52.9]} 17. Qf3 {[%clk 0:01:34.6]} 17... h6 {[%clk 0:01:50.6]} 18. Qxf7
{[%clk 0:01:28.4]} 18... Rg7 {[%clk 0:01:45.9]} 19. Qe8+ {[%clk 0:01:28.9]} 1-0

[Event "*** Titled Tuesday Blitz"]
[Site "Chess.com"]
[Date "2019.02.05"]
[Round "4"]
[White "akhairat"]
[Black "WorldChampionBulletChess"]
[Result "1-0"]
[WhiteElo "2241"]
[BlackElo "2109"]
[TimeControl "180+2"]
[EndTime "13:46:04 PST"]
[Termination "akhairat won by resignation"]

1. Nf3 {[%clk 0:03:01.7]} 1... d5 {[%clk 0:03:00.3]} 2. g3 {[%clk 0:03:01.6]}
2... c6 {[%clk 0:03:01.2]} 3. Bg2 {[%clk 0:03:02.9]} 3... g6 {[%clk 0:03:02.5]}
4. O-O {[%clk 0:03:03.9]} 4... Nf6 {[%clk 0:03:03.9]} 5. d3 {[%clk 0:03:04.6]}
5... h5 {[%clk 0:03:05.3]} 6. h4 {[%clk 0:03:00.5]} 6... Bg4 {[%clk 0:03:05.1]}
7. c4 {[%clk 0:03:01.6]} 7... Qc8 {[%clk 0:03:04.3]} 8. Re1 {[%clk 0:02:59]}
8... Nbd7 {[%clk 0:02:35.7]} 9. cxd5 {[%clk 0:02:54.1]} 9... cxd5 {[%clk
0:02:34.3]} 10. Nc3 {[%clk 0:02:55.7]} 10... e6 {[%clk 0:02:17.6]} 11. Bf4
{[%clk 0:02:49.6]} 11... Bxf3 {[%clk 0:02:14.6]} 12. Bxf3 {[%clk 0:02:38.9]}
12... e5 {[%clk 0:02:00.9]} 13. Bg5 {[%clk 0:02:35.9]} 13... d4 {[%clk
0:02:01.7]} 14. Nb5 {[%clk 0:02:16.5]} 14... Be7 {[%clk 0:01:54.7]} 15. Rc1
{[%clk 0:02:14.1]} 15... Qd8 {[%clk 0:01:45.4]} 16. Nc7+ {[%clk 0:02:12.2]}
16... Kf8 {[%clk 0:01:46.8]} 17. Nxa8 {[%clk 0:02:13]} 17... Qxa8 {[%clk
0:01:48.7]} 18. Rc7 {[%clk 0:01:59.4]} 1-0

[Event "*** Titled Tuesday Blitz"]
[Site "Chess.com"]
[Date "2019.02.05"]
[Round "4"]
[White "TrimitziosP7"]
[Black "Koksik_13"]
[Result "0-1"]
[WhiteElo "2679"]
[BlackElo "2680"]
[TimeControl "180+2"]
[EndTime "13:46:09 PST"]
[Termination "Koksik_13 won by resignation"]

1. d4 {[%clk 0:03:01.9]} 1... e6 {[%clk 0:03:00.1]} 2. c4 {[%clk 0:03:02.3]}
2... d5 {[%clk 0:02:59.6]} 3. Nf3 {[%clk 0:02:47.7]} 3... a6 {[%clk 0:03:01.5]}
4. cxd5 {[%clk 0:02:41.3]} 4... exd5 {[%clk 0:03:02.1]} 5. Nc3 {[%clk
0:02:43.2]} 5... c6 {[%clk 0:03:03.2]} 6. Bf4 {[%clk 0:02:38.9]} 6... Bd6 {[%clk
0:03:04.1]} 7. Bxd6 {[%clk 0:02:37.7]} 7... Qxd6 {[%clk 0:03:06]} 8. e4 {[%clk
0:02:34.4]} 8... dxe4 {[%clk 0:03:06.1]} 9. Nxe4 {[%clk 0:02:34.7]} 9... Qe7
{[%clk 0:03:06]} 10. Qe2 {[%clk 0:02:32.8]} 10... Be6 {[%clk 0:03:06.7]} 11. Nc5
{[%clk 0:02:30.6]} 11... Nf6 {[%clk 0:03:00.3]} 12. Nxe6 {[%clk 0:02:28.9]}
12... fxe6 {[%clk 0:03:00]} 13. Qc4 {[%clk 0:02:26.1]} 13... O-O {[%clk
0:02:58.1]} 14. Be2 {[%clk 0:02:26]} 14... Nd5 {[%clk 0:02:57.6]} 15. O-O {[%clk
0:02:25.8]} 15... Nd7 {[%clk 0:02:58.7]} 16. Rfe1 {[%clk 0:02:26.5]} 16... Kh8
{[%clk 0:02:58.6]} 17. Bd3 {[%clk 0:02:26.5]} 17... Nf4 {[%clk 0:02:54.3]} 18.
Re3 {[%clk 0:02:21.1]} 18... Nb6 {[%clk 0:02:54.2]} 19. Qb3 {[%clk 0:02:07.3]}
19... Nbd5 {[%clk 0:02:54.8]} 20. Re4 {[%clk 0:02:05.3]} 20... Qf6 {[%clk
0:02:53.9]} 21. Bc2 {[%clk 0:01:47.3]} 21... a5 {[%clk 0:02:27.5]} 22. Rae1
{[%clk 0:01:43.4]} 22... a4 {[%clk 0:02:27.5]} 23. Qc4 {[%clk 0:01:40.1]} 23...
Nxg2 {[%clk 0:02:24.7]} 24. Kxg2 {[%clk 0:01:21]} 24... Qxf3+ {[%clk 0:02:24.8]}
25. Kg1 {[%clk 0:01:22.9]} 25... Qxf2+ {[%clk 0:02:24.9]} 26. Kh1 {[%clk
0:01:23.1]} 26... Qf3+ {[%clk 0:02:24.5]} 27. Kg1 {[%clk 0:01:23.5]} 27... Nf4
{[%clk 0:02:24.3]} 0-1